bitfinex-derivatives/quotes_BTCF0:USTF0_20250211
["timestamp","ask_amount","ask_price","bid_price","bid_amount"]
[1739248758302,0.2043506,97857.0,97853.0,0.2073565]
[1739248759107,0.2043506,97857.0,97853.0,0.2163565]
[1739248759899,0.2043506,97857.0,97853.0,0.012]
[1739248760103,0.2043506,97857.0,97855.0,0.204353]
[1739248761307,0.2043506,97857.0,97855.0,0.207353]
[1739248761498,0.2043506,97857.0,97855.0,0.214353]
[1739248763399,0.565135,97864.0,97855.0,0.214353]
[1739248763799,0.565135,97864.0,97855.0,0.01]
[1739248764006,0.565135,97864.0,97857.0,0.2043488]
[1739248764507,0.565135,97864.0,97858.0,0.2043468]
[1739248764709,0.565135,97864.0,97855.0,0.01]
[1739248764908,0.565135,97864.0,97859.0,0.2043447]
[1739248765298,0.565135,97864.0,97860.0,0.2043422]
[1739248766305,0.04968838,97863.0,97860.0,0.2043422]
[1739248766806,0.04968838,97863.0,97859.0,0.004]
[1739248767010,0.04968838,97863.0,97861.0,0.2043405]
[1739248768112,0.04968838,97863.0,97861.0,0.2053405]
[1739248769206,0.04968838,97863.0,97861.0,0.2083405]
[1739248771418,0.04968838,97863.0,97861.0,0.2186912]
[1739248771804,0.04968838,97863.0,97861.0,0.004]
[1739248772008,0.04968838,97863.0,97849.0,0.00168613]
[1739248772209,0.2043551,97855.0,97854.0,0.2043554]
[1739248772409,0.8943551,97855.0,97854.0,0.2043554]
[1739248772813,0.2043602,97852.0,97849.0,0.00168613]
[1739248773014,0.2043602,97852.0,97849.0,0.00015321]
[1739248773215,0.2043602,97852.0,97849.0,0.20451861]
[1739248773516,0.0323,97854.0,97853.0,0.2043576]
[1739248775019,0.0323,97854.0,97853.0,0.2073576]
[1739248775319,0.0333,97854.0,97853.0,0.2153576]
[1739248775916,0.001,97854.0,97853.0,0.2153576]
[1739248776421,0.001,97854.0,97853.0,0.22813629]
[1739248781416,0.001,97854.0,97853.0,0.2153576]
[1739248791421,0.00015321,97868.0,97867.0,0.2043284]
[1739248793125,0.00215321,97868.0,97867.0,0.2043284]
[1739248793724,0.00315321,97868.0,97867.0,0.2043284]
[1739248795515,0.00315321,97868.0,97867.0,0.21448285]
[1739248795733,0.00315321,97868.0,97867.0,0.27748285]
[1739248796530,0.15326821,97884.0,97883.0,0.204295]
[1739248797630,0.16226821,97884.0,97883.0,0.205295]
[1739248798130,0.16726821,97884.0,97883.0,0.205295]
[1739248800136,0.014,97884.0,97883.0,0.205295]
[1739248800625,0.014,97884.0,97883.0,0.566095]
[1739248801324,0.00015216,97893.0,97892.0,0.2042762]
[1739248803032,0.00015216,97893.0,97892.0,0.2180493]
[1739248803725,0.00015216,97893.0,97892.0,0.2062762]
[1739248803923,0.00015216,97893.0,97892.0,0.2190494]
[1739248804331,0.00015216,97893.0,97892.0,0.2180494]
[1739248805122,0.0317,97899.0,97898.0,0.2042637]
[1739248809420,0.0317,97899.0,97898.0,0.21452432]
[1739248810128,0.0317,97899.0,97891.0,0.3608]
[1739248810129,0.0317,97899.0,97892.0,0.2042758]
[1739248810341,0.0317,97899.0,97892.0,0.01005995]
[1739248810525,0.0317,97899.0,97895.0,0.2042694]
[1739248812934,0.0317,97899.0,97892.0,0.01122069]
[1739248813137,0.0317,97899.0,97896.0,0.2042665]
[1739248814141,0.0317,97899.0,97896.0,0.214717]
[1739248819929,0.0317,97899.0,97897.0,0.2042643]
[1739248822031,0.00153263,97904.0,97902.0,0.2042536]
[1739248826946,0.0317,97907.0,97896.0,0.0104505]
[1739248827145,0.0317,97907.0,97904.0,0.2042506]
[1739248827348,0.0317,97907.0,97906.0,0.204247]
[1739248829340,0.51462822,97910.0,97897.0,0.05026398]
[1739248829542,0.15326821,97910.0,97909.0,0.2042407]
[1739248832038,0.15326821,97910.0,97909.0,0.2052407]
[1739248832246,0.15326821,97915.0,97909.0,0.001]
[1739248832541,0.15326821,97915.0,97911.0,0.2042349]
[1739248832749,0.15326821,97915.0,97909.0,0.001]
[1739248832951,0.15326821,97915.0,97912.0,0.2042341]
[1739248834955,0.15326821,97915.0,97912.0,0.2052341]
[1739248835554,0.15326821,97915.0,97913.0,0.2042319]
[1739248835854,0.2042251,97917.0,97913.0,0.2042319]
[1739248835855,0.35749331,97917.0,97913.0,0.2042319]
[1739248836248,0.35749331,97917.0,97914.0,0.2042301]
[1739248838855,0.35749331,97917.0,97914.0,0.2052301]
[1739248840258,0.15326821,97917.0,97915.0,0.2042272]
[1739248840455,0.15326821,97917.0,97915.0,0.2676272]
[1739248841459,0.15326821,97917.0,97915.0,0.2696272]
[1739248842061,0.15326821,97925.0,97922.0,0.2042116]
[1739248842253,0.15326821,97925.0,97915.0,0.16592796]
[1739248842455,0.15326821,97925.0,97923.0,0.2042111]
[1739248843657,0.15326821,97925.0,97923.0,0.2052111]
[1739248844256,0.15326821,97925.0,97923.0,0.2062111]
[1739248845358,0.00153236,97930.0,97923.0,0.2062111]
[1739248845359,0.00153236,97930.0,97923.0,0.002]
[1739248845651,0.00153236,97930.0,97928.0,0.2041996]
[1739248847258,0.00153236,97930.0,97928.0,0.2051996]
[1739248847460,0.00153236,97930.0,97928.0,0.2061996]
[1739248851362,0.00153236,97930.0,97928.0,0.21624616]
[1739248852462,0.15378822,97943.0,97929.0,0.2041984]
[1739248852670,0.2041726,97942.0,97936.0,0.204183]
[1739248853862,0.2041726,97942.0,97936.0,0.205183]
[1739248854461,0.2041726,97942.0,97937.0,0.2041813]
[1739248855062,0.2041726,97942.0,97939.0,0.2041775]
[1739248855260,0.5649744,97941.0,97939.0,0.2041775]
[1739248855459,0.3608,97941.0,97939.0,0.2041775]
[1739248856259,0.3608,97941.0,97939.0,0.2051775]
[1739248856665,0.15326821,97945.0,97944.0,0.2041677]
[1739248856970,0.18320202,97945.0,97944.0,0.2041677]
[1739248858060,0.18320202,97945.0,97944.0,0.2051677]
[1739248859261,0.18320202,97945.0,97944.0,0.2061677]
[1739248859461,0.18320202,97945.0,97944.0,0.2051677]
[1739248859765,0.18320202,97945.0,97944.0,0.2061677]
[1739248859964,0.18320202,97945.0,97944.0,0.2051677]
[1739248860175,0.18320202,97945.0,97944.0,0.2061677]
[1739248860667,0.21307791,97957.0,97955.0,0.204143]
[1739248861063,0.21307791,97957.0,97952.0,0.3608]
[1739248861953,0.21307791,97957.0,97956.0,0.2041427]
[1739248862663,0.18323952,97960.0,97959.0,0.2041365]
[1739248863761,0.18323952,97960.0,97959.0,0.2051365]
[1739248863961,0.18323952,97960.0,97959.0,0.2061365]
[1739248865163,0.18323952,97960.0,97959.0,0.21638939]
[1739248866165,0.00153206,97963.0,97959.0,0.01225289]
[1739248866364,0.0313,97979.0,97960.0,0.3608]
[1739248866664,0.0313,97979.0,97971.0,0.2041113]
[1739248867261,0.0313,97979.0,97963.0,0.05026398]
[1739248867460,0.0313,97979.0,97975.0,0.2041012]
[1739248867661,0.0313,97979.0,97969.0,0.11702398]
[1739248867860,0.0313,97979.0,97978.0,0.2040969]
[1739248868067,0.3608,97984.0,97978.0,0.2040969]
[1739248869380,0.3608,97984.0,97978.0,0.2050969]
[1739248870470,0.3608,97984.0,97983.0,0.2040865]
[1739248871275,0.2364705,97991.0,97985.0,0.2040819]
[1739248871661,0.0324,97991.0,97983.0,0.06664]
[1739248871864,0.0324,97991.0,97989.0,0.2040725]
[1739248872067,0.3608,97992.0,97990.0,0.2040709]
[1739248873268,0.03537472,98000.0,97999.0,0.2040532]
[1739248873476,0.3608,98014.0,98012.0,0.2040261]
[1739248874274,0.3608,98014.0,98003.0,0.07653071]
[1739248874275,0.0312,98024.0,98008.0,0.204033]
[1739248874576,0.3608,98040.0,98019.0,0.3608]
[1739248874876,0.51554734,98037.0,98027.0,0.07637766]
[1739248875183,0.2039811,98034.0,98027.0,0.07637766]
[1739248875873,0.2039844,98033.0,98027.0,0.07637766]
[1739248876077,0.51606735,98037.0,98020.0,0.10737766]
[1739248876078,0.3608,98031.0,98020.0,0.10737766]
[1739248876281,0.07637766,98030.0,98007.0,0.37103636]
[1739248876578,0.07637766,98030.0,98008.0,0.06688]
[1739248876579,0.2040323,98009.0,98008.0,0.06688]
[1739248876971,0.5648323,98009.0,98008.0,0.06688]
[1739248877782,0.5648323,98009.0,98008.0,0.06888]
[1739248878173,0.5648323,98009.0,98008.0,0.002]
[1739248878980,0.5648323,98009.0,98008.0,0.007]
[1739248879177,0.5648323,98009.0,98008.0,0.005]
[1739248879377,0.5648323,98009.0,98008.0,0.007]
[1739248882575,0.5648323,98009.0,98008.0,0.002]
[1739248882891,0.5648323,98009.0,98008.0,0.006]
[1739248883185,0.5648323,98009.0,98008.0,0.005]
[1739248884283,0.5648323,98009.0,98008.0,0.004]
[1739248884882,0.2040427,98004.0,98003.0,0.00015305]
[1739248886184,0.2040427,98004.0,98003.0,0.00115305]
[1739248886584,0.2040427,98004.0,98003.0,0.00015305]
[1739248886786,0.2040427,98004.0,98003.0,0.00215305]
[1739248887390,0.2040427,98004.0,98003.0,0.00315305]
[1739248888091,0.3608,98009.0,98003.0,0.00815305]
[1739248888388,0.3608,98009.0,98004.0,0.2040428]
[1739248888389,0.5648331,98009.0,98004.0,0.2040428]
[1739248888691,0.5648331,98009.0,98005.0,0.2040398]
[1739248890190,0.5648331,98009.0,98005.0,0.2070398]
[1739248890376,0.5648331,98009.0,98005.0,0.003]
[1739248891392,0.5648331,98009.0,98005.0,0.01]
[1739248896685,0.3608,98024.0,98018.0,0.2040116]
[1739248896996,0.3608,98024.0,98021.0,0.2040056]
[1739248897183,0.3608,98024.0,98023.0,0.2040032]
[1739248897384,0.3608,98024.0,98023.0,0.20393941]
[1739248898187,0.3608,98032.0,98028.0,0.2039915]
[1739248898392,0.3608,98032.0,98029.0,0.2039887]
[1739248898584,0.001,98024.0,98023.0,0.2040032]
[1739248898783,0.001,98024.0,98023.0,0.2650032]
[1739248899390,0.3608,98032.0,98030.0,0.2039872]
[1739248901581,0.3608,98032.0,98030.0,0.2049872]
[1739248902989,0.3608,98032.0,98030.0,0.215226]
[1739248903194,0.3608,98032.0,98030.0,0.0112388]
[1739248904296,0.3608,98032.0,98030.0,0.001]
[1739248904597,0.3608,98032.0,98030.0,0.2049884]
[1739248906499,0.2039781,98036.0,98030.0,0.2049884]
[1739248906500,0.5647781,98036.0,98030.0,0.2049884]
[1739248906691,0.2039781,98036.0,98030.0,0.2049884]
[1739248907000,0.5647781,98036.0,98030.0,0.2049884]
[1739248908490,0.3608,98036.0,98030.0,0.001]
[1739248908689,0.2039858,98032.0,98030.0,0.001]
[1739248910089,0.2039858,98032.0,98023.0,0.00015305]
[1739248910301,0.2039858,98032.0,98030.0,0.001]
[1739248911202,0.2039893,98030.0,98023.0,0.00015305]
[1739248911496,0.0327,98029.0,98023.0,0.00015305]
[1739248911700,0.2366917,98029.0,98023.0,0.00015305]
[1739248911999,0.0327,98029.0,98023.0,0.00015305]
[1739248912193,0.5647998,98025.0,98023.0,0.00015305]
[1739248912594,0.0631,98024.0,98023.0,0.00015305]
[1739248921212,0.0510016,98022.0,97998.0,0.06688]
[1739248921404,0.3608,98006.0,98001.0,0.2040472]
[1739248921707,0.3608,98006.0,98005.0,0.2040407]
[1739248921908,0.3608,98006.0,97998.0,0.18203082]
[1739248922105,0.3608,98006.0,97999.0,0.2040525]
[1739248922499,0.3608,98006.0,98000.0,0.08637766]
[1739248922705,0.00015225,98013.0,98000.0,0.08637766]
[1739248923096,0.3608,98033.0,98032.0,0.2039845]
[1739248924110,0.2039645,98042.0,98032.0,0.2039845]
[1739248924503,0.0311,98043.0,98032.0,0.2039845]
[1739248924709,0.2039718,98039.0,98032.0,0.2039845]
[1739248925206,0.3608,98044.0,98036.0,0.2039754]
[1739248925411,0.3608,98044.0,98040.0,0.2039671]
[1739248926412,0.3608,98044.0,98043.0,0.2039616]
[1739248927604,0.18203481,98045.0,98043.0,0.2039616]
[1739248928706,0.18203481,98045.0,98044.0,0.067]
[1739248929209,0.18203481,98045.0,98044.0,0.2709595]
[1739248929412,0.3608,98056.0,98044.0,0.2709595]
[1739248929606,0.3608,98056.0,98045.0,0.2039554]
[1739248929908,0.3608,98056.0,98046.0,0.203954]
[1739248930105,0.2039501,98049.0,98044.0,0.067]
[1739248930712,0.2039544,98047.0,98044.0,0.067]
[1739248930915,0.2039544,98047.0,98044.0,0.068]
[1739248931506,0.2039544,98047.0,98044.0,0.001]
[1739248931714,0.3608,98056.0,98044.0,0.001]
[1739248931912,0.2039398,98054.0,98044.0,0.001]
[1739248932306,0.2039398,98054.0,98045.0,0.2039561]
[1739248932617,0.2039398,98054.0,98047.0,0.2039522]
[1739248933611,0.3608,98056.0,98053.0,0.2039401]
[1739248933811,0.3608,98056.0,98054.0,0.2039367]
[1739248934008,0.18203481,98066.0,98064.0,0.2039179]
[1739248934207,0.24168243,98087.0,98068.0,0.2039091]
[1739248934208,0.3608,98082.0,98068.0,0.2039091]
[1739248934416,0.3608,98082.0,98069.0,0.07637766]
[1739248934916,0.2038933,98076.0,98069.0,0.07637766]
[1739248935118,0.3608,98082.0,98069.0,0.07637766]
[1739248935914,0.2039118,98067.0,98066.0,0.06692]
[1739248936211,0.2039118,98067.0,98065.0,0.06265297]
[1739248937309,0.2039118,98067.0,98065.0,0.00015297]
[1739248938109,0.69,98066.0,98065.0,0.00015297]
[1739248938511,0.2039118,98067.0,98065.0,0.00015297]
[1739248938706,0.3608,98066.0,98065.0,0.00115297]
[1739248939318,0.3608,98066.0,98065.0,0.00015297]
[1739248939518,0.3608,98066.0,98065.0,0.00115297]
[1739248939708,0.3938,98066.0,98065.0,0.00115297]
[1739248940124,1.0838,98066.0,98043.0,0.0668]
[1739248940325,0.3608,98052.0,98050.0,0.07637766]
[1739248940517,0.2039537,98047.0,98043.0,0.0668]
[1739248940717,0.2039586,98045.0,98043.0,0.0668]
[1739248941520,0.3608,98052.0,98035.0,0.43781766]
[1739248941817,0.3608,98044.0,98035.0,0.43717766]
[1739248942214,0.2039594,98045.0,98035.0,0.43717766]
[1739248942426,0.2039594,98045.0,98036.0,0.2039747]
[1739248942742,0.2039594,98045.0,98043.0,0.008]
[1739248943234,0.2039594,98045.0,98036.0,0.2039747]
[1739248943630,0.2039672,98041.0,98035.0,0.45181766]
[1739248943939,0.3608,98052.0,98043.0,0.003]
[1739248944328,0.2039449,98051.0,98043.0,0.003]
[1739248944531,0.0001527,98054.0,98052.0,0.2039411]
[1739248944721,0.0001527,98054.0,98053.0,0.0312]
[1739248945732,0.0001527,98054.0,98052.0,0.00272]
[1739248945935,0.0001527,98054.0,98052.0,0.002]
[1739248946333,0.0001527,98054.0,98052.0,0.001]
[1739248946533,0.0001527,98054.0,98053.0,0.001]
[1739248947529,0.0001527,98054.0,98053.0,0.002]
[1739248947931,0.0001527,98054.0,98053.0,0.001]
[1739248948133,0.0001527,98054.0,98053.0,0.005]
[1739248948533,0.0001527,98054.0,98053.0,0.004]
[1739248949341,0.0001527,98054.0,98053.0,0.013]
[1739248950130,0.0616527,98054.0,98053.0,0.013]
[1739248952141,0.0001527,98054.0,98053.0,0.013]
[1739248952731,0.0001527,98054.0,98053.0,0.0738]
[1739248960240,0.18315688,98078.0,98053.0,0.0738]
[1739248960439,0.18315688,98078.0,98076.0,0.2038926]
[1739248962143,0.18415688,98078.0,98076.0,0.2038926]
[1739248962540,0.001,98078.0,98076.0,0.2038926]
[1739248964139,0.69,98077.0,98076.0,0.2038926]
[1739248965251,0.691,98077.0,98076.0,0.2038926]
[1739248967240,0.691,98077.0,98068.0,0.07637766]
[1739248967440,0.8948913,98077.0,98068.0,0.07637766]
[1739248969150,0.2038951,98075.0,98068.0,0.28028656]
[1739248969751,0.2038982,98074.0,98068.0,0.28028656]
[1739248970655,0.2038982,98074.0,98068.0,0.2039089]
[1739248970951,0.2038982,98074.0,98067.0,0.00015297]
[1739248971452,0.032,98073.0,98067.0,0.00015297]
[1739248972554,0.2039061,98070.0,98067.0,0.00015297]
[1739248974653,0.2049061,98070.0,98067.0,0.00015297]
[1739248976362,0.69,98069.0,98067.0,0.00015297]
[1739248977449,0.691,98069.0,98067.0,0.00015297]
[1739248979957,0.2039096,98068.0,98067.0,0.00015297]
[1739248981265,0.2365096,98068.0,98067.0,0.00015297]
[1739248987959,0.2049096,98068.0,98067.0,0.00015297]
[1739248988166,0.001,98068.0,98067.0,0.00015297]
[1739248989069,0.001,98068.0,98067.0,0.06345297]
[1739248992175,0.001,98068.0,98067.0,0.03255297]
[1739248996378,0.001,98068.0,98067.0,0.00015297]
[1739249008394,0.301,98068.0,98067.0,1e-08]
[1739249008784,0.001,98068.0,98067.0,1e-08]
[1739249011291,0.691,98068.0,98067.0,1e-08]
[1739249014085,1.4126,98068.0,98067.0,1e-08]
[1739249014290,1.4794,98068.0,98067.0,1e-08]
[1739249016892,0.7578,98068.0,98067.0,1e-08]
[1739249017090,1.4794,98068.0,98067.0,1e-08]
[1739249017291,1.52899191,98068.0,98067.0,1e-08]
[1739249019490,1.82899191,98068.0,98067.0,1e-08]
[1739249021298,1.93609833,98068.0,98067.0,1e-08]
[1739249025088,2.15399833,98068.0,98067.0,1e-08]
[1739249026802,1.85399833,98068.0,98067.0,1e-08]
[1739249027197,1.85391833,98068.0,98067.0,1e-08]
[1739249027603,2.15391833,98068.0,98067.0,1e-08]
[1739249029608,0.0509793,98065.0,98031.0,0.031]
[1739249029800,0.3608,98032.0,98031.0,0.031]
[1739249030000,0.5647845,98032.0,98031.0,0.031]
[1739249030802,0.5647845,98032.0,98031.0,0.046]
[1739249031405,0.5647845,98032.0,98031.0,0.053]
[1739249044715,0.3608,98032.0,98031.0,0.053]
[1739249045513,0.3608,98032.0,98031.0,0.553]
[1739249046214,0.3608,98032.0,98031.0,0.7569866]
[1739249047914,0.3608,98032.0,98031.0,0.553]
[1739249049808,0.00015297,98041.0,98040.0,0.2039678]
[1739249051216,0.00015297,98041.0,98040.0,0.2099678]
[1739249051720,0.00015297,98041.0,98040.0,0.2249678]
[1739249053716,0.00015297,98041.0,98040.0,0.2558678]
[1739249062934,0.00015297,98041.0,98040.0,0.2249678]
[1739249063631,0.00015297,98041.0,98040.0,0.021]
[1739249066837,0.06684,98047.0,98040.0,0.021]
[1739249067024,0.2039646,98042.0,98040.0,0.021]
[1739249067228,0.3608,98054.0,98041.0,0.2039649]
[1739249067229,0.203942,98053.0,98041.0,0.2039649]
[1739249067434,0.234642,98053.0,98045.0,0.2039569]
[1739249068043,0.234642,98053.0,98040.0,0.006]
[1739249068229,0.234642,98053.0,98048.0,0.2039501]
[1739249068537,0.234642,98053.0,98050.0,0.2039469]
[1739249070937,0.234642,98053.0,98050.0,0.2149469]
[1739249072030,0.0307,98053.0,98050.0,0.2149469]
[1739249072231,0.2039433,98052.0,98050.0,0.2149469]
[1739249073540,0.25353945,98052.0,98050.0,0.2149469]
[1739249073926,0.04959615,98052.0,98050.0,0.2149469]
[1739249076936,0.0307,98053.0,98050.0,0.011]
[1739249077134,0.0307,98053.0,98052.0,0.2039429]
[1739249078130,0.0307,98053.0,98052.0,0.2069429]
[1739249080036,0.0307,98053.0,98052.0,0.2139429]
[1739249082145,0.3608,98054.0,98052.0,0.2139429]
[1739249084542,0.3608,98054.0,98052.0,0.2109429]
[1739249084746,0.3608,98054.0,98052.0,0.2139429]
[1739249085847,0.2039408,98053.0,98052.0,0.01]
[1739249086149,0.2350408,98053.0,98052.0,0.01]
[1739249087145,0.28463306,98053.0,98052.0,0.01]
[1739249095248,0.2350408,98053.0,98052.0,0.01]
[1739249099447,0.5958408,98053.0,98052.0,0.01]
[1739249100257,0.9858408,98053.0,98052.0,0.01]
[1739249101061,0.2039616,98043.0,98042.0,0.00015297]
[1739249101357,0.5647616,98043.0,98042.0,0.00015297]
[1739249102353,0.5647616,98043.0,98042.0,0.01415297]
[1739249102554,0.5647616,98043.0,98042.0,0.02015297]
[1739249110764,0.2039616,98043.0,98042.0,0.02015297]
[1739249110964,0.5647616,98043.0,98042.0,0.02015297]
[1739249112453,0.61436172,98043.0,98042.0,0.02015297]
[1739249118972,0.5647616,98043.0,98042.0,0.02015297]
[1739249126072,0.61436148,98043.0,98042.0,0.02015297]
[1739249133965,0.5647616,98043.0,98042.0,0.02015297]
[1739249137573,0.5657616,98043.0,98042.0,0.02115297]
[1739249139082,0.5647616,98043.0,98042.0,0.00715297]
[1739249139283,0.5657616,98043.0,98042.0,0.02015297]
[1739249139681,0.5657616,98043.0,98042.0,0.01915297]
[1739249140776,0.61536272,98043.0,98042.0,0.01915297]
[1739249142178,0.41140112,98043.0,98023.0,0.38593686]
[1739249142384,0.2039941,98028.0,98023.0,0.38593686]
[1739249143172,0.42704,98034.0,98023.0,0.38593686]
[1739249143376,0.2039953,98027.0,98023.0,0.40793686]
[1739249144275,0.2039975,98026.0,98023.0,0.40793686]
[1739249144890,0.2039975,98026.0,98023.0,0.2260021]
[1739249145975,0.2039975,98026.0,98023.0,0.2240021]
[1739249146474,0.2049975,98026.0,98023.0,0.2100021]
[1739249146679,0.2059975,98026.0,98023.0,0.2150021]
[1739249151294,0.2059975,98026.0,98024.0,0.2040002]
[1739249152486,0.2059975,98026.0,98024.0,0.2190002]
[1739249152689,0.2059975,98026.0,98024.0,0.2260002]
[1739249158382,0.2059975,98026.0,98024.0,0.022]
[1739249160299,0.002,98026.0,98024.0,0.226]
[1739249161088,0.00015297,98035.0,98034.0,0.2039803]
[1739249161402,0.05006982,98070.0,98034.0,0.2039803]
[1739249161403,0.18295499,98044.0,98043.0,0.2039616]
[1739249161585,0.18295499,98044.0,98043.0,0.5647616]
[1739249163491,0.18295499,98044.0,98043.0,0.5697616]
[1739249164389,0.2039276,98060.0,98052.0,0.2039416]
[1739249164586,0.2039276,98060.0,98054.0,0.2039387]
[1739249165091,0.3608,98065.0,98053.0,0.0634]
[1739249165286,0.3608,98065.0,98056.0,0.203933]
[1739249165694,0.5647178,98065.0,98056.0,0.203933]
[1739249166287,0.5647178,98065.0,98055.0,0.05006982]
[1739249166490,0.5647178,98065.0,98058.0,0.203929]
[1739249167198,0.5647178,98065.0,98060.0,0.2039249]
[1739249167692,0.5647178,98065.0,98056.0,0.001]
[1739249167693,0.3608,98065.0,98063.0,0.2039196]
[1739249169097,0.3658,98065.0,98063.0,0.2039196]
[1739249169291,0.3668,98065.0,98063.0,0.2039196]
[1739249169689,0.006,98065.0,98063.0,0.2039196]
[1739249176195,0.2038633,98091.0,98083.0,0.2038769]
[1739249176499,0.2038633,98091.0,98055.0,0.21640946]
[1739249176500,0.3608,98076.0,98075.0,0.30403464]
[1739249176701,0.7216,98076.0,98075.0,0.203895]
[1739249179296,0.7266,98076.0,98075.0,0.203895]
[1739249179496,0.7396,98076.0,98075.0,0.204895]
[1739249181607,0.7276,98076.0,98075.0,0.213895]
[1739249181798,0.7226,98076.0,98075.0,0.218895]
[1739249185196,0.39873575,98076.0,98075.0,0.218895]
[1739249185403,0.3598,98076.0,98075.0,0.218895]
[1739249185603,0.32415502,98076.0,98075.0,0.218895]
[1739249186200,0.36095297,98085.0,98075.0,0.06626766]
[1739249186401,0.3608,98095.0,98080.0,0.3608]
[1739249186605,0.3608,98095.0,98085.0,0.05739054]
[1739249186902,0.3608,98095.0,98086.0,0.07814766]
[1739249187201,0.3608,98095.0,98094.0,0.2038555]
[1739249187907,0.3608,98095.0,98086.0,0.06688]
[1739249188105,0.564655,98095.0,98085.0,0.26126364]
[1739249188308,0.568655,98095.0,98085.0,0.26126364]
[1739249189012,0.3618,98095.0,98085.0,0.26126364]
[1739249189214,0.3618,98095.0,98086.0,0.002]
[1739249190012,0.3618,98095.0,98094.0,0.2038555]
[1739249190013,0.3608,98095.0,98094.0,0.2038555]
[1739249191802,0.0322,98107.0,98094.0,0.2038555]
[1739249192009,0.07141415,98100.0,98099.0,0.2038452]
[1739249192509,0.0322,98107.0,98099.0,0.011384]
[1739249192708,0.0322,98107.0,98106.0,0.2038306]
[1739249193310,0.3608,98115.0,98099.0,0.002]
[1739249193311,0.3608,98115.0,98109.0,0.2038239]
[1739249194214,0.3608,98115.0,98110.0,0.01145328]
[1739249195005,0.3608,98115.0,98100.0,0.2038427]
[1739249195208,0.39,98110.0,98100.0,0.2038427]
[1739249196107,0.3638,98111.0,98100.0,0.2038427]
[1739249196309,0.3638,98111.0,98100.0,0.2048427]
[1739249196703,0.3608,98111.0,98100.0,0.2048427]
[1739249196908,0.3648,98111.0,98100.0,0.2048427]
[1739249197504,0.3608,98101.0,98100.0,0.001]
[1739249197721,0.3608,98101.0,98100.0,0.004]
[1739249198109,0.3608,98101.0,98100.0,0.003]
[1739249198309,0.3608,98101.0,98100.0,0.004]
[1739249198716,0.2038607,98092.0,98090.0,0.00015297]
[1739249198918,0.3608,98091.0,98090.0,0.00015297]
[1739249199221,0.3608,98091.0,98055.0,0.0611]
[1739249199222,0.2038792,98083.0,98060.0,0.08237096]
[1739249199413,0.3608,98071.0,98060.0,0.08237096]
[1739249199612,0.3608,98071.0,98066.0,0.2039125]
[1739249200013,0.3608,98071.0,98060.0,0.08237096]
[1739249200213,0.3608,98062.0,98060.0,0.08237096]
[1739249200408,0.3608,98062.0,98059.0,0.00015289]
[1739249200621,0.0327,98061.0,98059.0,0.00015289]
[1739249201014,0.0308,98060.0,98059.0,0.00015289]
[1739249201920,0.0308,98060.0,98059.0,0.00715289]
[1739249202315,0.0638,98060.0,98057.0,0.26189264]
[1739249202521,0.3608,98058.0,98050.0,0.08237096]
[1739249202714,0.3608,98058.0,98049.0,0.00052]
[1739249203017,0.3608,98050.0,98042.0,0.00052]
[1739249203208,0.3608,98050.0,98042.0,0.2039621]
[1739249203606,0.3608,98050.0,98043.0,0.2039601]
[1739249204711,0.3618,98050.0,98043.0,0.2189601]
[1739249205105,0.3628,98050.0,98043.0,0.2259601]
[1739249205816,0.3628,98050.0,98043.0,0.022]
[1739249206015,0.3628,98050.0,98044.0,0.2039585]
[1739249207216,0.3618,98050.0,98044.0,0.2039585]
[1739249207420,0.3628,98050.0,98044.0,0.2189585]
[1739249207611,0.3618,98050.0,98044.0,0.2189585]
[1739249207812,0.3628,98050.0,98044.0,0.2259585]
[1739249210520,0.3628,98050.0,98048.0,0.2039493]
[1739249211714,0.3618,98050.0,98048.0,0.2039493]
[1739249211915,0.3618,98050.0,98048.0,0.2099493]
[1739249212112,0.3628,98050.0,98048.0,0.2099493]
[1739249212320,0.3628,98050.0,98048.0,0.2249493]
[1739249214927,0.3628,98050.0,98048.0,0.021]
[1739249220125,0.3628,98050.0,98048.0,0.2249503]
[1739249222221,0.002,98050.0,98048.0,0.2249503]
[1739249222824,0.00015297,98056.0,98055.0,0.2039366]
[1739249224122,0.00015297,98056.0,98055.0,0.2079366]
[1739249225122,0.00115297,98056.0,98055.0,0.2179366]
[1739249227531,0.3608,98072.0,98068.0,0.2039095]
[1739249227719,0.3608,98072.0,98071.0,0.2039034]
[1739249227926,0.3608,98072.0,98071.0,0.21537288]
[1739249228124,0.3608,98072.0,98071.0,0.21537181]
[1739249230429,0.3628,98072.0,98071.0,0.21537181]
[1739249230937,0.001,98072.0,98071.0,0.21537181]
[1739249231131,0.3608,98073.0,98071.0,0.22037181]
[1739249231330,0.3608,98073.0,98072.0,0.01146841]
[1739249232238,0.3618,98073.0,98072.0,0.01146841]
[1739249233935,0.3618,98073.0,98072.0,0.02346841]
[1739249234326,0.3618,98073.0,98072.0,0.02746841]
[1739249236341,0.3618,98073.0,98072.0,0.02738823]
[1739249236541,0.3618,98073.0,98072.0,0.016]
[1739249237138,0.001,98073.0,98072.0,0.206]
[1739249237341,0.3608,98092.0,98091.0,0.2038618]
[1739249238545,0.3628,98092.0,98091.0,0.2038618]
[1739249238945,0.3638,98092.0,98091.0,0.2038618]
[1739249242143,0.003,98092.0,98091.0,0.2038618]
[1739249243935,0.003,98092.0,98082.0,0.08252393]
[1739249244140,0.003,98092.0,98090.0,0.2038628]
[1739249244938,0.001,98092.0,98090.0,0.2038628]
[1739249245541,0.0324,98098.0,98090.0,0.2038628]
[1739249246252,0.001,98092.0,98090.0,0.2038628]
[1739249246839,0.002,98092.0,98090.0,0.2038628]
[1739249247839,0.001,98092.0,98090.0,0.2038628]
[1739249248442,0.001,98092.0,98082.0,0.08252393]
[1739249248647,0.3608,98091.0,98083.0,0.2038772]
[1739249248842,0.4253,98091.0,98083.0,0.2038772]
[1739249251051,0.4253,98091.0,98083.0,0.2078772]
[1739249251247,0.4253,98091.0,98083.0,0.2088772]
[1739249251954,0.2038764,98084.0,98083.0,0.005]
[1739249253856,0.2038764,98084.0,98083.0,0.001]
[1739249254057,0.2038764,98084.0,98083.0,0.005]
[1739249254848,0.2038764,98084.0,98083.0,0.004]
[1739249255053,0.2038764,98084.0,98083.0,0.005]
[1739249261262,0.93876666,98091.0,98083.0,0.005]
[1739249261458,0.7861,98091.0,98083.0,0.005]